bitfinex/quotes_SOLUSD_20260220
["timestamp","ask_amount","ask_price","bid_price","bid_amount"]
[1771597355276,0.4636064,82.663,82.632,12.10184916]
[1771597355802,0.4636064,82.672,82.633,0.4963175]
[1771597355979,12.09608586,82.672,82.633,0.4963175]
[1771597356180,0.4636064,82.671,82.633,0.4963175]
[1771597356987,0.4636064,82.669,82.635,0.4963175]
[1771597358109,0.4636064,82.669,82.634,12.10155626]
[1771597358608,0.4636064,82.669,82.629,12.10225317]
[1771597359115,0.49331859,82.669,82.621,0.49612488]
[1771597359488,0.49331859,82.659,82.599,0.49612488]
[1771597359687,0.49331859,82.659,82.592,0.28432314]
[1771597359688,0.49331859,82.659,82.605,0.49612488]
[1771597359900,0.49331859,82.659,82.609,0.49612488]
[1771597360194,0.49331859,82.669,82.619,0.49612488]
[1771597362407,0.49331859,82.669,82.621,0.49612488]
[1771597362611,0.49331859,82.668,82.621,0.49612488]
[1771597364387,0.49331859,82.668,82.623,0.49612488]
[1771597364605,0.49331859,82.667,82.623,0.49612488]
[1771597365009,0.49331859,82.667,82.622,42.36159859]
[1771597365010,0.49331859,82.667,82.629,0.49612488]
[1771597366190,0.49331859,82.666,82.629,0.49612488]
[1771597366388,0.49331859,82.664,82.63,12.10214207]
[1771597366610,0.49331859,82.659,82.609,0.49612488]
[1771597368802,0.49331859,82.657,82.611,0.49612488]
[1771597369292,0.49331859,82.648,82.61,12.10507202]
[1771597370131,0.49331859,82.648,82.611,0.49612488]
[1771597371014,0.49331859,82.648,82.613,0.49612488]
[1771597371208,12.09965273,82.647,82.613,0.49612488]
[1771597371516,12.59297132,82.647,82.613,0.49612488]
[1771597371708,0.49331859,82.647,82.613,0.49612488]
[1771597372997,0.49331859,82.664,82.615,0.49612488]
[1771597373195,12.09701808,82.665,82.615,0.49612488]
[1771597373196,0.49331859,82.659,82.615,0.49612488]
[1771597373613,0.49331859,82.659,82.614,42.36570072]
[1771597373614,0.49331859,82.659,82.614,12.10448592]
[1771597373917,0.49331859,82.659,82.615,0.49612488]
[1771597374120,0.49331859,82.668,82.619,0.49612488]
[1771597374706,0.49331859,82.668,82.628,0.28432314]
[1771597374912,0.49331859,82.668,82.629,0.49612488]
[1771597375624,0.49331859,82.668,82.631,0.49612488]
[1771597377721,0.49331859,82.668,82.633,0.49612488]
[1771597379523,0.49331859,82.693,82.639,0.49612488]
[1771597379723,0.49331859,82.691,82.641,0.49612488]
[1771597379919,0.49331859,82.691,82.649,0.49612488]
[1771597381001,12.09306825,82.692,82.649,0.49612488]
[1771597381228,0.49331859,82.691,82.649,0.49612488]
[1771597381725,0.14216157,82.676,82.622,0.49612488]
[1771597381925,0.49331859,82.669,82.622,0.49612488]
[1771597383918,0.49331859,82.667,82.623,12.59929227]
[1771597384119,0.49331859,82.667,82.624,0.49612488]
[1771597385421,0.49331859,82.667,82.593,48.43010862]
[1771597385422,12.05383711,82.66,82.616,12.10406903]
[1771597385622,0.479397,82.659,82.616,12.10406903]
[1771597385823,0.479397,82.657,82.618,12.58462579]
[1771597386713,0.479397,82.657,82.618,12.10389987]
[1771597388030,0.46933951,82.655,82.612,0.4947716]
[1771597390623,0.46933951,82.653,82.613,12.10463244]
[1771597391528,0.46933951,82.651,82.614,0.4947716]
[1771597392828,0.46933951,82.649,82.615,12.1043394]
[1771597393021,0.46933951,82.649,82.615,42.36518791]
[1771597393935,0.46933951,82.649,82.615,42.85995951]
[1771597395225,0.46933951,82.647,82.615,12.599111]
[1771597395427,0.46933951,82.647,82.616,0.4947716]
[1771597395739,12.09950634,82.648,82.616,0.4947716]
[1771597395916,0.46933951,82.661,82.616,0.4947716]
[1771597397149,0.46933951,82.659,82.616,0.4947716]
[1771597397438,0.46933951,82.657,82.617,12.10404638]
[1771597397735,0.46933951,82.648,82.612,12.10477025]
[1771597398135,0.46933951,82.648,82.613,0.4947716]
[1771597398520,0.46933951,82.662,82.613,0.4947716]
[1771597399436,12.09663337,82.668,82.619,0.4947716]
[1771597399636,12.09663337,82.668,82.621,0.4947716]
[1771597399939,0.46933951,82.667,82.621,0.4947716]
[1771597400343,10.3,82.702,82.62,42.36262405]
[1771597400344,0.46933951,82.694,82.626,0.28432314]
[1771597400521,0.46933951,82.694,82.639,0.4947716]
[1771597400843,0.46933951,82.694,82.649,0.4947716]
[1771597401542,0.46933951,82.693,82.651,0.4947716]
[1771597401742,0.46933951,82.691,82.651,0.4947716]
[1771597404053,0.46933951,82.689,82.653,0.4947716]
[1771597406741,0.46933951,82.695,82.655,0.4947716]
[1771597408934,0.46933951,82.689,82.641,0.4947716]
[1771597411048,0.46933951,82.689,82.649,0.4947716]
[1771597412450,0.46933951,82.708,82.658,0.28432314]
[1771597412656,30.21809403,82.732,82.669,0.4947716]
[1771597412837,0.46933951,82.731,82.679,0.4947716]
[1771597413156,0.46933951,82.719,82.68,12.09482341]
[1771597413341,42.30629758,82.73,82.668,12.0965116]
[1771597413342,0.46933951,82.708,82.668,12.0965116]
[1771597413946,0.46933951,82.708,82.668,12.5912832]
[1771597415057,0.46933951,82.706,82.669,0.4947716]
[1771597415256,0.46933951,82.706,82.643,0.4947716]
[1771597415441,0.46933951,82.706,82.649,0.4947716]
[1771597416640,0.46933951,82.704,82.651,0.4947716]
[1771597417352,12.0911674,82.705,82.65,12.09921355]
[1771597417353,0.45579558,82.699,82.65,12.09921355]
[1771597417556,0.45579558,82.689,82.65,12.09921355]
[1771597417758,0.45579558,82.689,82.651,0.48154085]
[1771597418557,0.45579558,82.687,82.652,12.09892077]
[1771597420660,0.45579558,82.687,82.652,12.58046162]
[1771597421161,0.45579558,82.685,82.653,0.48154085]
[1771597423754,0.45579558,82.683,82.655,0.48154085]
[1771597425856,0.45579558,82.679,82.638,0.48154085]
[1771597426158,0.45579558,82.679,82.631,0.48154085]
[1771597428862,0.45579558,82.669,82.631,0.48154085]
[1771597429067,0.45579558,82.669,82.629,12.10222952]
[1771597429641,0.45579558,82.669,82.626,0.48154085]
[1771597431264,0.45579558,82.669,82.628,0.48154085]
[1771597431454,12.55237466,82.668,82.628,0.48154085]
[1771597431771,0.45579558,82.667,82.628,0.48154085]
[1771597433771,0.45579558,82.665,82.628,0.48154085]
[1771597433947,0.45579558,82.665,82.628,12.5838603]
[1771597434148,0.45579558,82.665,82.628,12.10231945]
[1771597434469,0.45579558,82.665,82.629,0.48154085]
[1771597435266,0.45579558,82.663,82.631,0.48154085]
[1771597437265,0.45579558,82.659,82.599,0.48154085]
[1771597440070,0.45579558,82.657,82.601,0.48154085]
[1771597440267,0.45579558,82.649,82.601,0.48154085]
[1771597440471,0.45579558,82.639,82.601,0.48154085]
[1771597443675,0.45579558,82.637,82.601,0.48154085]
[1771597444070,0.45579558,82.637,82.602,12.58778525]
[1771597444572,0.45579558,82.629,82.602,12.58778525]
[1771597444757,0.45579558,82.629,82.598,12.10676985]
[1771597445156,0.45579558,82.629,82.598,12.5883107]
[1771597446692,0.48779212,82.627,82.599,0.48092724]
[1771597448071,12.102435,82.628,82.554,6.31610294]
[1771597448072,0.48321573,82.619,82.571,0.4642488]
[1771597448872,4.50105292,82.61,82.573,0.4642488]
[1771597449087,0.48321573,82.609,82.573,0.4642488]
[1771597450197,0.48321573,82.599,82.565,0.4642488]
[1771597450487,42.36364956,82.618,82.565,0.4642488]
[1771597450488,0.48321573,82.589,82.565,0.4642488]
[1771597450894,0.48321573,82.587,82.565,0.4642488]
[1771597453293,0.48321573,82.579,82.541,0.4642488]
[1771597453585,0.48321573,82.569,82.523,30.29455662]
[1771597453774,0.48321573,82.579,82.524,0.28432314]
[1771597453975,12.1082966,82.588,82.524,0.28432314]
[1771597454388,0.48321573,82.587,82.524,0.28432314]
[1771597454788,0.48321573,82.594,82.524,0.28432314]
[1771597454981,0.48321573,82.607,82.524,14.34721366]
[1771597455180,0.48321573,82.605,82.526,0.28432314]
[1771597455394,12.10481601,82.612,82.526,0.28432314]
[1771597455688,12.10481601,82.612,82.525,262.47246333]
[1771597455689,12.58803174,82.612,82.552,0.28432314]
[1771597455889,0.48321573,82.611,82.559,0.4642488]
[1771597456586,0.48321573,82.609,82.561,0.4642488]
[1771597459291,0.48321573,82.609,82.545,48.45785493]
[1771597459292,12.10394948,82.618,82.569,0.4642488]
[1771597459497,0.48321573,82.621,82.573,0.4642488]
[1771597459710,0.48321573,82.637,82.579,0.4642488]
[1771597461198,0.48321573,82.635,82.581,0.4642488]
[1771597463510,0.48321573,82.633,82.583,0.4642488]
[1771597464092,0.48321573,82.633,82.586,0.28432314]
[1771597464411,0.48321573,82.633,82.589,0.4642488]
[1771597464987,0.48321573,82.629,82.589,0.4642488]
[1771597465404,4.50739087,82.63,82.585,0.4642488]
[1771597465405,0.48321573,82.619,82.585,0.4642488]
[1771597466613,0.48321573,82.617,82.587,0.4642488]
[1771597467899,0.48321573,82.615,82.588,12.1082966]
[1771597469804,0.48321573,82.615,82.589,0.4642488]
[1771597471209,0.48321573,82.615,82.59,12.10800339]
[1771597471412,0.48321573,82.615,82.59,12.57225219]
[1771597472894,0.48321573,82.615,82.591,0.4642488]
[1771597474414,0.48321573,82.625,82.593,0.4642488]
[1771597476590,0.48321573,82.625,82.595,0.4642488]
[1771597477295,0.46439967,82.623,82.595,0.4642488]
[1771597478706,12.10331388,82.622,82.596,12.10712383]
[1771597478913,0.46439967,82.621,82.596,12.10712383]
[1771597480105,0.46439967,82.643,82.599,0.45438223]
[1771597480523,0.46439967,82.641,82.599,0.45438223]
[1771597482099,0.46439967,82.641,82.601,0.45438223]
[1771597482522,12.09874513,82.654,82.601,0.45438223]
[1771597482820,0.46439967,82.653,82.601,0.45438223]
[1771597483011,0.46439967,82.653,82.603,0.45438223]
[1771597483317,0.46439967,82.667,82.609,0.45438223]
[1771597483495,0.46439967,82.667,82.619,0.45438223]
[1771597484119,12.09687174,82.666,82.62,42.36262405]
[1771597484302,0.46439967,82.665,82.621,0.45438223]
[1771597484709,12.09570118,82.674,82.621,0.45438223]
[1771597485102,0.46439967,82.673,82.621,0.45438223]
[1771597486505,0.46439967,82.671,82.623,0.45438223]
[1771597487305,0.46439967,82.669,82.625,0.45438223]
[1771597490614,0.46439967,82.667,82.626,12.10272795]
[1771597490818,0.46439967,82.666,82.626,12.10272795]
[1771597493626,0.46439967,82.664,82.626,0.45438223]
[1771597494506,0.46439967,82.659,82.599,0.45438223]
[1771597496318,0.46439967,82.657,82.608,0.28432314]
[1771597496519,0.46439967,82.657,82.609,0.45438223]
[1771597496733,0.46439967,82.639,82.6,42.37288135]
[1771597497838,0.46439967,82.639,82.6,42.82726358]
[1771597498626,0.46439967,82.639,82.566,48.44596681]
[1771597498627,0.46439967,82.637,82.594,0.45438223]
[1771597498927,0.46439967,82.629,82.594,0.45438223]
[1771597500316,10.3,82.667,82.598,0.45438223]
[1771597500317,0.46439967,82.649,82.598,0.45438223]
[1771597500831,0.46439967,82.647,82.6,0.45438223]
[1771597501123,0.46439967,82.639,82.599,42.37339435]
[1771597501338,0.46439967,82.639,82.6,0.45438223]
[1771597502326,0.46439967,82.647,82.6,0.45438223]
[1771597502523,0.46439967,82.653,82.608,0.45438223]
[1771597503121,0.46439967,82.653,82.61,0.45438223]
[1771597505330,0.45116284,82.669,82.618,0.49495381]
[1771597505632,0.45116284,82.668,82.618,0.49495381]
[1771597506018,12.54627883,82.678,82.628,0.49495381]
[1771597506330,0.45116284,82.677,82.628,0.49495381]
[1771597506531,0.45116284,82.677,82.638,0.49495381]
[1771597506931,0.45116284,82.695,82.638,0.49495381]
[1771597507717,0.49331656,82.693,82.641,42.81550627]
[1771597508824,12.09277577,82.694,82.641,42.81550627]
[1771597508825,0.49331656,82.689,82.641,42.81550627]
[1771597509619,0.49331656,82.689,82.642,0.46364703]
[1771597510443,0.49331656,82.689,82.648,0.46364703]
[1771597510828,0.49331656,82.687,82.648,0.46364703]
[1771597511339,0.49331656,82.694,82.648,0.46364703]
[1771597512256,12.09253558,82.696,82.643,42.3508343]
[1771597512257,0.49331656,82.689,82.643,42.81448133]
[1771597512546,0.49331656,82.689,82.644,0.46364703]
[1771597513039,0.49331656,82.679,82.637,0.46364703]
[1771597514830,12.09511599,82.678,82.638,12.10097049]
[1771597515026,0.49331656,82.677,82.639,0.46364703]
[1771597517645,0.49331656,82.675,82.641,0.46364703]
[1771597517847,0.49331656,82.688,82.641,0.46364703]
[1771597519341,0.49331656,82.688,82.649,0.46364703]
[1771597519832,0.49331656,82.688,82.651,0.46364703]
[1771597520249,12.0937995,82.687,82.651,0.46364703]
[1771597520445,0.49331656,82.686,82.651,0.46364703]
[1771597520644,0.49331656,82.702,82.651,0.46364703]
[1771597521052,0.49331656,82.702,82.659,0.46364703]
[1771597521569,4.50739087,82.72,82.65,42.34724742]
[1771597521570,0.49331656,82.722,82.669,0.46364703]
[1771597521856,0.49331656,82.727,82.679,0.46364703]
[1771597523943,0.49331656,82.725,82.681,0.46364703]
[1771597524453,0.49331656,82.743,82.689,0.46364703]
[1771597524753,0.49331656,82.737,82.689,0.46364703]
[1771597525649,4.59667295,82.76,82.705,0.46364703]
[1771597525650,0.49331656,82.759,82.705,0.46364703]
[1771597525848,0.49331656,82.759,82.68,260.0387034]
[1771597525849,0.49331656,82.759,82.718,0.28432314]
[1771597526041,0.49331656,82.759,82.719,0.46364703]
[1771597527549,0.1,82.76,82.729,0.46364703]
[1771597527749,0.1,82.78,82.737,0.46364703]
[1771597527950,0.1,82.78,82.749,0.46364703]
[1771597529144,0.49331656,82.779,82.741,0.46364703]
[1771597529450,0.49331656,82.779,82.748,0.46364703]
[1771597530029,0.1,82.78,82.74,54.46345149]
[1771597530030,0.1,82.78,82.75,0.46364703]
[1771597530447,0.59331656,82.78,82.75,0.46364703]
[1771597531558,0.49331656,82.778,82.749,12.08473818]
[1771597531944,0.49331656,82.778,82.743,12.08561449]
[1771597532655,0.49331656,82.776,82.743,42.76329775]
[1771597532839,0.1,82.78,82.748,0.46364703]
[1771597534256,0.1,82.78,82.75,0.46364703]
[1771597536358,0.1,82.78,82.752,0.46364703]
[1771597538255,0.1,82.78,82.754,0.49028837]
[1771597538758,0.56978989,82.78,82.753,42.29453916]
[1771597538946,0.56978989,82.78,82.754,0.49028837]
[1771597539644,0.1,82.8,82.758,0.49028837]
[1771597540350,0.1,82.8,82.76,0.49028837]
[1771597541348,0.1,82.8,82.759,42.29147282]
[1771597541668,0.46978989,82.799,82.76,0.49028837]
[1771597543768,0.46978989,82.797,82.761,12.08298594]
[1771597545051,0.46978989,82.839,82.768,0.49028837]
[1771597545257,0.46978989,82.838,82.778,0.49028837]
[1771597545456,0.46978989,82.838,82.761,138.95433836]
[1771597545457,0.46978989,82.838,82.788,0.49028837]
[1771597545864,0.46978989,82.838,82.793,0.28432314]
[1771597546053,0.46978989,82.838,82.798,0.49028837]
[1771597546374,12.07095594,82.844,82.798,0.49028837]
[1771597546375,0.46978989,82.849,82.798,0.49028837]
[1771597547166,0.46978989,82.849,82.8,0.49028837]
[1771597547374,0.46978989,82.849,82.789,90.59174527]
[1771597547375,0.46978989,82.849,82.806,0.49028837]
[1771597547869,0.1,82.86,82.809,0.49028837]
[1771597548067,0.1,82.86,82.819,0.49028837]
[1771597548068,0.46978989,82.859,82.819,0.49028837]
[1771597548375,0.46978989,82.859,82.828,0.49028837]
[1771597548867,0.1,82.86,82.828,0.49028837]
[1771597549376,0.1,82.86,82.83,0.49028837]
[1771597549682,0.1,82.87,82.838,0.49028837]
[1771597549964,0.1,82.87,82.84,0.49028837]
[1771597550151,0.1,82.87,82.839,12.07160878]
[1771597550152,0.46978989,82.869,82.839,12.07160878]
[1771597550353,0.46978989,82.859,82.797,0.49028837]
[1771597550953,0.46978989,82.859,82.799,0.49028837]
[1771597551149,0.46978989,82.859,82.81,0.14216157]
[1771597551355,0.46978989,82.859,82.819,0.49028837]
[1771597551955,0.46978989,82.857,82.82,12.07437816]
[1771597552373,0.46978989,82.849,82.802,30.19225639]
[1771597552872,0.46978989,82.839,82.801,12.56743719]
[1771597553373,0.46978989,82.839,82.801,12.07714882]
[1771597553557,0.46978989,82.839,82.801,42.27002088]
[1771597553758,0.46978989,82.839,82.801,12.07714882]
[1771597554360,0.46978989,82.837,82.802,0.49028837]
[1771597556361,0.46978989,82.835,82.803,12.07685711]
[1771597558462,0.46978989,82.833,82.795,30.19474827]
[1771597559278,0.46978989,82.833,82.795,30.68503664]
[1771597559464,0.46978989,82.833,82.796,0.49028837]
[1771597560173,0.46978989,82.833,82.793,12.07831579]
[1771597560574,0.46978989,82.833,82.784,30.19886804]
[1771597560575,0.46978989,82.831,82.785,0.49028837]
[1771597560959,0.46978989,82.839,82.789,0.49028837]
[1771597561362,0.46978989,82.839,82.799,0.49028837]
[1771597561585,0.46978989,82.858,82.803,0.49028837]
[1771597561776,0.46978989,82.858,82.809,0.49028837]
[1771597562464,0.46978989,82.856,82.811,0.49028837]
[1771597564364,0.46978989,82.856,82.813,0.49028837]
[1771597564581,0.46978989,82.856,82.82,0.49028837]
[1771597565078,0.46978989,82.854,82.82,0.49028837]
[1771597565482,0.47796385,82.866,82.82,0.49028837]
[1771597566590,0.47796385,82.866,82.828,0.48724034]
[1771597567392,0.48681094,82.864,82.828,0.48724034]
[1771597568589,0.48681094,82.864,82.83,0.45222308]
[1771597568793,0.48681094,82.862,82.83,0.45222308]
[1771597569883,0.48681094,82.862,82.821,12.07423238]
[1771597570079,0.48681094,82.86,82.816,12.07482015]
[1771597570291,0.48681094,82.858,82.816,12.07482015]
[1771597571183,0.48681094,82.856,82.796,0.45222308]
[1771597571492,0.48681094,82.856,82.798,0.45222308]
[1771597574792,0.1,82.87,82.8,0.45222308]
[1771597574793,0.48681094,82.849,82.8,0.45222308]
[1771597575381,0.48681094,82.849,82.808,0.45222308]
[1771597577280,0.48681094,82.849,82.79,12.0676693]
[1771597577281,0.48681094,82.839,82.792,0.45222308]
[1771597577482,0.48681094,82.839,82.798,0.45222308]
[1771597577690,0.48681094,82.839,82.793,0.28432314]
[1771597577691,0.48681094,82.855,82.805,0.28432314]
[1771597577898,0.48681094,82.855,82.808,0.45222308]
[1771597579704,0.48681094,82.853,82.81,0.45222308]
[1771597580392,0.1,82.87,82.814,0.45222308]
[1771597580582,0.1,82.87,82.822,0.45222308]
[1771597581004,12.06723865,82.869,82.822,0.45222308]
[1771597582005,4.58355882,82.87,82.824,0.45222308]
[1771597582503,0.48398598,82.869,82.824,0.45222308]
[1771597586206,0.48398598,82.859,82.825,12.07364926]
[1771597587106,0.48398598,82.859,82.819,0.45222308]
[1771597587506,0.48398598,82.859,82.816,12.0748432]
[1771597587698,0.48398598,82.859,82.809,0.45222308]
[1771597588287,0.48398598,82.857,82.811,0.45222308]
[1771597589709,0.48398598,82.849,82.805,12.07645585]
[1771597589890,0.48398598,82.849,82.806,0.45222308]
[1771597591808,0.48398598,82.847,82.806,0.45222308]
[1771597593103,0.48398598,82.845,82.793,0.45222308]
[1771597593310,0.48398598,82.839,82.793,0.45222308]
[1771597593699,0.48398598,82.837,82.795,0.45222308]
[1771597596113,12.07204597,82.836,82.797,0.45222308]
[1771597596896,12.55493287,82.844,82.797,0.45222308]
[1771597597303,0.46152286,82.843,82.797,0.45222308]
[1771597598100,12.07117162,82.842,82.798,42.27155244]
[1771597598314,0.46152286,82.841,82.799,0.48877974]
[1771597600921,0.46152286,82.848,82.801,0.48877974]
[1771597603015,4.58156044,82.87,82.803,0.48877974]
[1771597603016,0.46152286,82.855,82.803,0.48877974]
[1771597603716,0.46152286,82.869,82.813,0.48877974]
[1771597604308,0.46152286,82.868,82.813,0.48877974]
[1771597605237,0.46152286,82.866,82.815,0.48877974]
[1771597607326,0.46152286,82.864,82.817,0.48877974]
[1771597607823,0.46152286,82.864,82.816,12.07496136]
[1771597608029,0.46152286,82.859,82.817,0.48877974]
[1771597610830,42.23737403,82.865,82.819,0.48877974]
[1771597610831,0.46152286,82.857,82.819,0.48877974]
[1771597611822,0.46152286,82.864,82.819,0.48877974]
[1771597612216,0.46152286,82.869,82.823,0.48877974]
[1771597612414,0.1,82.87,82.823,0.48877974]
[1771597613021,0.56152286,82.87,82.825,0.48877974]
[1771597613912,0.56152286,82.87,82.826,42.2572622]
[1771597614115,0.56152286,82.87,82.827,0.48877974]
[1771597615425,0.1,82.87,82.827,0.48877974]
[1771597616131,0.1,82.87,82.826,42.2572622]
[1771597616132,0.46152286,82.888,82.834,0.48877974]
[1771597616336,16.14514037,82.905,82.828,102.90662476]
[1771597616337,0.46152286,82.886,82.835,0.28432314]
[1771597616634,0.46152286,82.904,82.842,0.48877974]
[1771597616932,0.46152286,82.903,82.842,0.48877974]
[1771597618333,0.46152286,82.901,82.844,0.48877974]
[1771597619633,0.46152286,82.899,82.846,0.48877974]
[1771597619840,16.14514037,82.905,82.846,0.48877974]
[1771597620022,0.46152286,82.904,82.852,0.48877974]
[1771597620738,16.14514037,82.905,82.861,0.28432314]
[1771597621039,0.46152286,82.918,82.862,0.48877974]
[1771597621747,0.46152286,82.916,82.864,0.48877974]
[1771597621960,0.46152286,82.916,82.863,42.23839348]
[1771597621961,0.46152286,82.924,82.872,0.48877974]
[1771597623647,12.05763549,82.935,82.873,42.23329672]
[1771597623854,0.46152286,82.934,82.874,0.48877974]
[1771597625838,0.48398598,82.932,82.876,0.49946984]
[1771597626050,0.48398598,82.926,82.876,0.49946984]
[1771597627250,0.48398598,82.926,82.864,0.48208076]
[1771597627251,4.48156044,82.92,82.864,0.48208076]
[1771597627435,4.48156044,82.92,82.834,12.6552794]
[1771597627436,0.48398598,82.916,82.857,0.48208076]
[1771597627837,0.48398598,82.914,82.859,0.48208076]
[1771597630347,0.48398598,82.912,82.861,0.48208076]
[1771597631562,0.48398598,82.909,82.861,0.48208076]
[1771597632259,12.06156221,82.908,82.862,12.06825806]
[1771597632454,0.48398598,82.907,82.863,0.48208076]
[1771597634444,0.48398598,82.905,82.864,12.55004754]
[1771597636261,0.48398598,82.899,82.848,0.48208076]
[1771597636563,0.48398598,82.879,82.836,0.48208076]
[1771597638466,0.48398598,82.877,82.837,12.07190023]
[1771597640264,0.48398598,82.875,82.831,30.18164173]
[1771597640469,0.48398598,82.875,82.832,0.48208076]
[1771597643853,0.48398598,82.873,82.834,0.48208076]
[1771597644055,0.48398598,82.886,82.834,0.48208076]
[1771597646368,4.48164653,82.88,82.836,0.48208076]
[1771597646573,0.48398598,82.879,82.836,0.48208076]
[1771597650271,0.48398598,82.869,82.83,0.48208076]
[1771597650761,0.48398598,82.877,82.832,0.48208076]
[1771597650958,52.5307488,82.878,82.832,0.48208076]
[1771597650959,10.3,82.878,82.832,0.48208076]
[1771597651152,171.98164653,82.92,82.832,0.48208076]
[1771597651153,0.48398598,82.893,82.832,0.48208076]
[1771597652569,0.48398598,82.891,82.834,0.48208076]
[1771597654976,0.48398598,82.889,82.836,0.48208076]
[1771597656962,0.48398598,82.887,82.838,0.48208076]
[1771597658384,42.22565389,82.888,82.838,0.48208076]
[1771597658385,0.48398598,82.879,82.838,0.48208076]
[1771597660279,0.48398598,82.879,82.84,0.47472661]
[1771597660786,0.48398598,82.878,82.84,0.47472661]
[1771597662167,0.48398598,82.876,82.842,0.47472661]
[1771597664175,0.48398598,82.876,82.844,0.47472661]
[1771597664493,0.48398598,82.874,82.844,0.47472661]
[1771597666785,0.48398598,82.874,82.846,0.47472661]
[1771597669393,0.48398598,82.872,82.847,12.0704431]
[1771597669771,4.48164653,82.87,82.839,0.47472661]
[1771597669969,0.48398598,82.869,82.84,12.07146306]
[1771597674794,0.48398598,82.867,82.84,12.07146306]
[1771597675095,0.48398598,82.859,82.828,12.07321195]
[1771597675480,0.48398598,82.859,82.828,12.54793856]
[1771597675879,0.48398598,82.859,82.829,0.47472661]
[1771597676194,0.48398598,82.865,82.829,0.47472661]
[1771597676375,0.48398598,82.874,82.829,0.47472661]
[1771597676891,0.48398598,82.888,82.829,0.47472661]
[1771597677092,0.48398598,82.886,82.831,0.47472661]
[1771597678297,0.48398598,82.886,82.83,42.25522152]
[1771597678298,0.48398598,82.884,82.833,0.47472661]
[1771597680498,0.48398598,82.868,82.829,0.47472661]
[1771597680680,4.48164653,82.88,82.829,0.47472661]
[1771597680681,0.48398598,82.879,82.829,0.47472661]
[1771597681293,0.48398598,82.886,82.833,0.47472661]
[1771597681894,0.48398598,82.884,82.833,0.47472661]
[1771597685305,0.48398598,82.884,82.835,0.45714468]
[1771597686386,0.48398598,82.884,82.837,0.45714468]
[1771597688479,0.4754712,82.882,82.839,0.49107924]
[1771597690810,0.4754712,82.882,82.841,0.49107924]
[1771597692205,0.4754712,82.88,82.841,0.49107924]
[1771597693015,10.3,82.915,82.843,0.49107924]
[1771597693016,0.4754712,82.889,82.843,0.49107924]
[1771597693309,0.4754712,82.888,82.843,0.49107924]
[1771597696418,0.4754712,82.886,82.845,0.49107924]
[1771597696999,0.4754712,82.879,82.845,0.49107924]
[1771597700220,0.4754712,82.879,82.847,0.49107924]
[1771597702445,0.4754712,82.879,82.849,0.49107924]
[1771597705942,0.4754712,82.879,82.85,12.07000603]
[1771597706242,0.4754712,82.879,82.851,0.49107924]
[1771597708132,0.4754712,82.879,82.853,0.49107924]
[1771597709744,0.4754712,82.878,82.853,0.49107924]
[1771597710239,0.4754712,82.879,82.853,0.49107924]
[1771597710644,0.4754712,82.879,82.854,12.06942332]
[1771597710826,0.4754712,82.888,82.855,0.49107924]
[1771597713742,0.4754712,82.886,82.855,0.49107924]
[1771597714156,0.4754712,82.879,82.839,0.49107924]
[1771597715425,42.22616332,82.887,82.839,0.49107924]
[1771597715426,0.4754712,82.886,82.839,0.49107924]
[1771597715832,0.4754712,82.884,82.841,0.49107924]
[1771597719654,0.4754712,82.884,82.841,0.49107924]
[1771597726764,0.48104951,82.882,82.843,0.47846877]
[1771597728267,0.48104951,82.879,82.843,0.47846877]
[1771597730058,0.48104951,82.877,82.845,0.47846877]
[1771597732046,0.48104951,82.875,82.846,12.54905757]
[1771597732444,0.48104951,82.869,82.842,0.47846877]
[1771597732775,4.48018371,82.86,82.824,0.47846877]
[1771597733073,0.48104951,82.849,82.824,0.47846877]
[1771597734369,0.48104951,82.849,82.826,0.47846877]
[1771597736351,12.07013098,82.85,82.828,0.47846877]
[1771597736671,0.48104951,82.849,82.828,0.47846877]
[1771597738762,0.48104951,82.848,82.828,0.47846877]
[1771597738960,0.48104951,82.848,82.819,0.47846877]
[1771597739152,0.48104951,82.839,82.818,12.07461538]
[1771597739354,0.48104951,82.839,82.814,0.47846877]
[1771597740653,0.48104951,82.837,82.814,0.47846877]
[1771597742449,0.48104951,82.829,82.798,0.47846877]
[1771597742648,0.48104951,82.828,82.8,0.47846877]
[1771597742852,0.48104951,82.819,82.8,0.47846877]
[1771597743172,0.48104951,82.809,82.777,0.47846877]
[1771597743362,0.48104951,82.809,82.778,0.47846877]
[1771597744578,0.48104951,82.807,82.779,12.08035854]
[1771597744882,0.48104951,82.807,82.779,12.55882731]
[1771597745186,0.48104951,82.807,82.78,0.47846877]
[1771597746379,0.47328876,82.825,82.78,0.47846877]
[1771597746575,12.07306619,82.829,82.781,12.08006668]
[1771597746779,0.47328876,82.828,82.782,0.45048237]
[1771597747083,4.48018371,82.85,82.791,0.14216157]
[1771597747370,0.46588306,82.849,82.798,0.46223394]
[1771597748158,0.46588306,82.847,82.798,0.46223394]
[1771597748857,0.46588306,82.845,82.8,0.46223394]
[1771597752272,0.46588306,82.843,82.802,0.46223394]
[1771597752575,4.48018371,82.84,82.802,0.46223394]
[1771597752866,0.46588306,82.839,82.802,0.46223394]
[1771597753075,0.46588306,82.829,82.796,12.54009155]
[1771597753267,0.46588306,82.839,82.797,0.46223394]
[1771597753667,0.46588306,82.819,82.781,0.46223394]